bitfinex-derivatives/quotes_SOLF0:USTF0_20250716
["timestamp","ask_amount","ask_price","bid_price","bid_amount"]
[1752655250307,29.91540678,165.03,164.99,1.18450675]
[1752655250715,29.91540678,165.03,165.0,6.0596]
[1752655252917,6.0591,165.02,164.99,6.06]
[1752655253117,6.0591,165.02,164.98,4.20296626]
[1752655253118,23.85650678,165.03,164.98,4.20296626]
[1752655253317,23.85650678,165.03,164.96,4.20296626]
[1752655253517,17.02350131,164.98,164.97,6.0609]
[1752655255421,17.02350131,164.98,164.96,2.92680474]
[1752655256120,17.02350131,164.98,164.97,6.0609]
[1752655257321,6.0594,165.01,164.98,6.0604]
[1752655257921,6.0598,165.0,164.98,6.0604]
[1752655258221,17.02350131,165.03,164.97,10.26376626]
[1752655258419,6.0597,165.01,164.97,4.20296626]
[1752655258616,6.0597,165.01,164.98,6.0605]
[1752655260316,17.02350131,165.02,164.99,4.20296626]
[1752655260721,17.02350131,165.02,165.01,4.20296626]
[1752655260917,6.058,165.05,165.02,6.059]
[1752655261422,6.0577,165.06,165.02,6.059]
[1752655261715,6.0577,165.06,165.01,4.20296626]
[1752655261716,4.20296626,165.11,165.03,4.20296626]
[1752655261920,523.76,165.13,165.03,4.20296626]
[1752655262119,5.0,165.21,165.01,178.82]
[1752655262321,4.20296626,165.14,165.07,4.20296626]
[1752655262522,6.0556,165.12,165.07,4.20296626]
[1752655262719,178.82,165.15,165.07,4.20296626]
[1752655262919,4.20296626,165.15,165.07,4.20296626]
[1752655263121,6.055,165.13,165.07,4.20296626]
[1752655263722,183.02296626,165.15,165.0,178.8]
[1752655264021,4.20296626,165.13,165.05,4.20296626]
[1752655264222,4.20296626,165.13,165.06,6.0575]
[1752655264423,4.20296626,165.13,165.05,4.20296626]
[1752655264825,6.0564,165.1,165.06,6.0574]
[1752655265023,4.20296626,165.13,165.06,6.0574]
[1752655265219,178.82,165.15,164.98,12.1209]
[1752655265520,6.0567,165.09,165.05,10.26066626]
[1752655266123,6.0569,165.08,165.05,4.20296626]
[1752655267124,16.97401127,165.13,165.05,4.20296626]
[1752655267516,16.97401127,165.12,165.07,4.20296626]
[1752655267717,6.0563,165.1,165.07,4.20296626]
[1752655267922,16.97401127,165.13,165.09,4.20296626]
[1752655268526,16.97401127,165.15,165.04,4.20296626]
[1752655268726,13.56686735,165.1,165.08,4.20296626]
[1752655268928,16.97401127,165.15,165.08,7.19440964]
[1752655269324,6.0553,165.13,165.09,6.0563]
[1752655269523,16.97401127,165.15,165.1,4.20296626]
[1752655269722,21.17697753,165.16,165.08,4.20296626]
[1752655269923,16.97401127,165.15,165.08,4.20296626]
[1752655270129,6.0558,165.11,165.08,4.20296626]
[1752655271627,6.0553,165.13,165.09,6.0563]
[1752655271823,16.97401127,165.16,165.1,4.20296626]
[1752655272119,6.0546,165.15,165.12,4.20296626]
[1752655272325,4.20296626,165.2,165.13,4.20296626]
[1752655273024,707.28,165.21,165.13,4.20296626]
[1752655273224,6.0543,165.16,165.13,4.20296626]
[1752655273425,711.48296626,165.21,165.13,4.20296626]
[1752655273724,6.0547,165.14,165.13,4.20296626]
[1752655274022,4.20296626,165.19,165.1,4.20296626]
[1752655274527,707.28,165.21,165.12,4.20296626]
[1752655274722,4.20296626,165.2,165.12,4.20296626]
[1752655276026,711.48296626,165.21,165.14,4.20296626]
[1752655276226,6.0543,165.15,165.14,4.20296626]
[1752655276426,6.0543,165.15,165.12,4.20296626]
[1752655277231,711.48296626,165.21,165.14,4.20296626]
[1752655277523,4.20296626,165.19,165.12,4.20296626]
[1752655278130,6.0545,165.15,165.12,4.20296626]
[1752655278523,4.20296626,165.18,165.11,4.20296626]
[1752655278830,4.20296626,165.16,165.09,4.20296626]
[1752655279024,4.20296626,165.16,164.99,523.7]
[1752655279328,4.20296626,165.13,165.05,4.20296626]
[1752655279722,4.20296626,165.13,165.05,10.26066626]
[1752655280123,178.38,165.15,165.07,4.20296626]
[1752655280428,6.0562,165.1,165.07,4.20296626]
[1752655280927,6.0562,165.1,165.07,10.26016626]
[1752655282230,182.58296626,165.15,165.08,6.0566]
[1752655282526,199.55697753,165.15,165.08,6.0566]
[1752655283125,199.55697753,165.15,165.07,10.26006626]
[1752655283430,4.20296626,165.13,165.07,4.20296626]
[1752655283727,4.20296626,165.13,165.07,10.26016626]
[1752655283923,6.056,165.11,165.07,10.26016626]
[1752655284528,6.056,165.11,165.08,6.0569]
[1752655285024,4.20296626,165.13,165.06,4.20296626]
[1752655285328,4.20296626,165.13,165.07,6.057]
[1752655285630,6.0561,165.11,165.07,6.057]
[1752655286525,4.20296626,165.13,165.07,6.057]
[1752655287228,6.0564,165.1,165.05,4.20296626]
[1752655287428,16.97401127,165.09,165.05,4.20296626]
[1752655287922,23.03061127,165.09,165.06,6.0575]
[1752655288125,16.97401127,165.09,165.05,4.20296626]
[1752655288326,16.97401127,165.08,165.07,6.0572]
[1752655290930,16.97401127,165.08,164.99,523.7]
[1752655291135,16.97401127,165.08,165.04,4.20296626]
[1752655291831,6.0572,165.07,165.04,4.20296626]
[1752655292233,23.03101127,165.08,165.05,6.0577]
[1752655292532,16.97401127,165.07,165.05,6.0577]
[1752655292725,23.03101127,165.08,165.05,6.0577]
[1752655292925,16.97401127,165.07,165.05,6.0577]
[1752655293733,16.91452199,165.07,165.05,6.0577]
[1752655293935,22.97182199,165.07,165.04,6.0582]
[1752655295132,4.20296626,165.1,165.02,4.20296626]
[1752655295133,16.91452199,165.05,165.02,4.20296626]
[1752655295331,16.91452199,165.05,165.02,1.17712716]
[1752655295734,22.97282199,165.05,165.02,7.23602716]
[1752655296235,22.97282199,165.05,165.03,6.0586]
[1752655296433,16.91452199,165.05,165.03,6.0586]
[1752655297336,4.20296626,165.09,165.04,6.0583]
[1752655297531,4.20296626,165.09,164.99,523.7]
[1752655297738,6.0578,165.06,165.03,6.0585]
[1752655298433,16.91452199,165.12,165.03,6.0585]
[1752655298638,4.20296626,165.09,165.03,6.0585]
[1752655299435,16.91452199,165.11,165.03,6.0585]
[1752655299638,6.0578,165.06,165.03,6.0585]
[1752655300533,4.20296626,165.1,165.02,4.20296626]
[1752655301640,6.0573,165.07,165.04,6.058]
[1752655301940,4.20296626,165.1,165.04,6.058]
[1752655302135,6.0578,165.06,165.04,6.058]
[1752655302629,6.0575,165.07,165.02,4.20296626]
[1752655302944,4.20296626,165.1,165.02,4.20296626]
[1752655303742,6.0575,165.07,165.04,6.0581]
[1752655304134,4.20296626,165.1,165.04,6.0581]
[1752655304839,6.0574,165.07,165.04,6.0581]
[1752655305841,6.0574,165.07,165.02,4.20296626]
[1752655306241,6.0574,165.07,165.04,6.058]
[1752655306843,6.0574,165.07,165.02,4.20296626]
[1752655307941,6.057,165.08,165.05,6.0579]
[1752655308144,6.057,165.08,165.04,4.20296626]
[1752655308537,16.91452199,165.11,165.06,4.20296626]
[1752655308838,21.11748825,165.13,165.06,4.20296626]
[1752655309037,21.11748825,165.13,165.07,6.0569]
[1752655309242,16.91452199,165.13,165.06,4.20296626]
[1752655309745,6.0561,165.11,165.08,6.0568]
[1752655310041,16.91452199,165.13,165.08,6.0568]
[1752655310241,6.0565,165.09,165.07,6.0571]
[1752655311242,6.0563,165.1,165.08,6.0567]
[1752655311436,4.20296626,165.15,165.08,6.0567]
[1752655312242,6.0562,165.1,165.08,6.0567]
[1752655312643,850.61554016,165.16,165.09,6.0564]
[1752655312944,6.056,165.11,165.09,6.0564]
[1752655313742,6.056,165.11,165.08,10.25966626]
[1752655314244,6.056,165.11,165.09,6.0565]
[1752655314743,6.0561,165.1,165.08,4.20296626]
[1752655315246,659.62764016,165.16,165.0,12.1194]
[1752655315440,838.40764016,165.16,165.07,4.20296626]
[1752655315644,838.40764016,165.16,165.07,10.25986626]
[1752655315843,6.0564,165.1,165.07,10.25986626]
[1752655316348,838.40764016,165.16,165.07,10.25986626]
[1752655316548,4.20296626,165.14,165.06,4.20296626]
[1752655316747,834.2046739,165.16,165.06,4.20296626]
[1752655316748,4.20296626,165.12,165.06,4.20296626]
[1752655317045,6.0574,165.07,165.04,10.26106626]
[1752655317238,4.20296626,165.12,165.04,10.26106626]
[1752655317646,4.20296626,165.12,165.04,4.20296626]
[1752655318247,6.0575,165.07,165.04,4.20296626]
[1752655320353,6.0575,165.07,165.04,10.26126626]
[1752655321552,6.057,165.08,165.04,10.26126626]
[1752655322451,16.91452199,165.11,165.05,6.0577]
[1752655322752,16.91452199,165.11,165.04,4.20296626]
[1752655323048,16.91452199,165.12,165.06,4.20296626]
[1752655323455,6.056,165.11,165.07,6.0572]
[1752655325453,6.056,165.11,165.06,4.20296626]
[1752655325851,6.056,165.11,165.07,6.057]
[1752655326356,6.0555,165.12,165.06,4.20296626]
[1752655326655,6.0555,165.12,165.08,6.0566]
[1752655326954,6.0555,165.12,165.06,4.20296626]
[1752655327154,16.91452199,165.13,165.08,4.20296626]
[1752655327347,672.33919589,165.16,165.1,4.20296626]
[1752655327751,672.33919589,165.16,165.04,4.20296626]
[1752655327752,131.8246739,165.16,165.12,4.20296626]
[1752655328457,131.8246739,165.16,165.12,10.25816626]
[1752655328756,6.0544,165.15,165.12,4.20296626]
[1752655329059,6.0544,165.15,165.1,4.20296626]
[1752655329757,6.0544,165.15,165.12,6.0553]
[1752655330157,6.0544,165.15,165.11,6.0556]
[1752655330660,6.0544,165.15,165.12,6.0554]
[1752655332154,182.88296626,165.18,165.11,6.0556]
[1752655333059,182.88296626,165.18,165.12,6.0554]
[1752655333358,182.88296626,165.18,165.06,186.39785315]
[1752655333560,182.88296626,165.18,165.11,6.0555]
[1752655333765,182.88296626,165.18,165.1,4.20296626]
[1752655334058,6.0549,165.14,165.1,10.25886626]
[1752655334254,182.88296626,165.18,165.1,4.20296626]
[1752655334255,4.20296626,165.16,165.1,4.20296626]
[1752655334452,178.62,165.18,165.1,4.20296626]
[1752655334858,178.62,165.18,165.12,6.0552]
[1752655335161,6.0545,165.15,165.06,186.39785315]
[1752655335360,6.0545,165.15,165.1,4.20296626]
[1752655336060,6.0539,165.16,165.12,6.055]
[1752655336362,182.82296626,165.18,165.12,6.055]
[1752655336862,178.62,165.18,165.12,4.20296626]
[1752655337560,16.91452199,165.17,165.06,186.39785315]
[1752655337760,16.91452199,165.17,165.11,4.20296626]
[1752655338061,16.91452199,165.13,165.11,1.18101495]
[1752655338359,16.91452199,165.13,165.11,10.25846626]
[1752655338957,6.0543,165.15,165.11,10.25846626]
[1752655339162,6.0543,165.15,165.12,6.0553]
[1752655339359,22.96852199,165.16,165.12,6.0553]
[1752655339559,22.96852199,165.16,165.11,4.20296626]
[1752655339758,22.96852199,165.16,165.13,6.0547]
[1752655340958,6.054,165.16,165.13,6.0547]
[1752655341263,6.054,165.16,165.11,4.20296626]
[1752655341264,22.96822199,165.17,165.14,6.0546]
[1752655345963,22.96822199,165.17,165.12,4.20296626]
[1752655346164,6.054,165.16,165.06,186.39785315]
[1752655346465,6.054,165.16,165.13,6.0547]
[1752655346764,6.054,165.16,165.12,4.20296626]
[1752655346966,6.054,165.16,165.13,6.0549]
[1752655348266,6.054,165.16,165.14,6.0546]
[1752655348769,6.0544,165.15,165.13,6.0549]
[1752655348964,326.5610913,165.19,165.13,6.0549]
[1752655349561,6.054,165.16,165.13,6.0549]
[1752655351171,6.0546,165.15,165.11,4.20296626]
[1752655351472,4.20296626,165.18,165.11,4.20296626]
[1752655351670,6.0549,165.14,165.09,4.20296626]
[1752655351871,21.11748825,165.18,165.09,4.20296626]
[1752655352069,6.0546,165.15,165.09,4.20296626]
[1752655353266,6.0547,165.14,165.12,6.0554]
[1752655354668,6.0545,165.15,165.12,6.0554]
[1752655354870,21.11748825,165.18,165.09,4.20296626]
[1752655355171,21.11748825,165.18,165.11,4.20296626]
[1752655355172,4.20296626,165.18,165.11,4.20296626]
[1752655355365,6.0541,165.16,165.13,6.0548]
[1752655355864,6.0543,165.15,165.13,6.0548]
[1752655356263,330.76405756,165.19,165.14,6.0544]
[1752655356477,313.84953557,165.19,165.14,6.0544]
[1752655356773,6.0538,165.17,165.14,6.0544]
[1752655356973,330.76405756,165.19,165.1,4.20296626]
[1752655357168,330.76405756,165.19,165.06,198.51245315]
[1752655357366,330.76405756,165.19,165.11,4.20296626]
[1752655357569,6.0541,165.16,165.13,6.0548]
[1752655357774,330.76405756,165.19,165.11,4.20296626]
[1752655358076,6.0541,165.16,165.13,6.0548]
[1752655359074,6.0541,165.16,165.14,6.0546]
[1752655360776,6.0541,165.16,165.13,6.0548]
[1752655361173,330.76405756,165.19,165.13,6.0548]
[1752655361676,6.0543,165.15,165.13,6.0548]
[1752655361873,147.9410913,165.19,165.13,6.0548]
[1752655362178,326.0410913,165.19,165.14,6.0545]
[1752655363181,6.054,165.16,165.13,6.0548]
[1752655363380,147.9410913,165.19,165.13,4.20296626]
[1752655363580,131.02656931,165.19,165.13,4.20296626]
[1752655363773,137.07956931,165.19,165.13,4.20296626]
[1752655363978,131.02656931,165.19,165.15,4.20296626]
[1752655364378,6.0525,165.2,165.15,4.20296626]
[1752655364877,6.0525,165.2,165.17,6.0532]
[1752655365278,6.0529,165.19,165.15,4.20296626]
[1752655365479,6.0529,165.19,165.16,6.0536]
[1752655365975,6.0529,165.19,165.15,4.20296626]
[1752655366480,6.0529,165.19,165.16,6.0538]
[1752655367584,21.91452199,165.21,165.16,10.25676626]
[1752655368082,6.0531,165.19,165.16,10.25676626]
[1752655369882,6.0531,165.19,165.16,6.0538]
[1752655370084,6.0532,165.18,165.16,6.0538]
[1752655370285,6.0532,165.18,165.15,4.20296626]
[1752655370990,6.0532,165.18,165.16,6.0537]
[1752655371190,6.053,165.19,165.16,6.0537]
[1752655374289,6.0534,165.18,165.15,4.20296626]
[1752655375089,6.0534,165.18,165.16,6.0537]
[1752655375888,6.053,165.19,165.16,6.0537]
[1752655376891,6.053,165.19,165.15,4.20296626]
[1752655377391,16.91452199,165.16,165.15,1.25324053]
[1752655377590,16.91452199,165.16,165.15,7.30754053]
[1752655378895,16.91452199,165.16,165.15,6.0543]
[1752655379088,16.91452199,165.16,165.14,6.0545]
[1752655379288,16.91452199,165.15,165.14,6.0545]
[1752655379889,16.91452199,165.16,165.14,6.0545]
[1752655380189,16.91452199,165.16,165.15,6.0543]
[1752655380395,23.68033079,165.19,165.15,6.0543]
[1752655381189,23.68033079,165.19,165.15,4.20296626]
[1752655381489,16.98479085,165.17,165.15,4.20296626]
[1752655381792,16.98479085,165.17,165.16,6.0539]
[1752655382187,16.98479085,165.18,165.17,6.0536]
[1752655382397,5.0,165.21,165.17,4.20296626]
[1752655382893,16.97678471,165.18,165.17,4.20296626]
[1752655383495,16.97678471,165.18,165.08,12.1133]
[1752655383691,16.97678471,165.17,165.16,4.20296626]
[1752655383995,16.97678471,165.17,165.16,10.25686626]
[1752655384391,6.0527,165.2,165.17,6.0535]
[1752655385294,11.0522,165.21,165.15,4.20296626]
[1752655385494,16.97376353,165.17,165.15,4.20296626]
[1752655385694,16.97376353,165.18,165.15,4.20296626]
[1752655385894,16.97376353,165.18,165.17,4.20296626]
[1752655386396,16.97376353,165.18,165.17,10.25656626]
[1752655387494,5.0,165.21,165.19,6.0528]
[1752655388798,5.0,165.21,165.17,4.20296626]
[1752655388996,5.0,165.21,165.19,4.20296626]
[1752655390101,5.0,165.21,165.2,6.0525]
[1752655392704,5.0,165.21,165.19,10.25566626]
[1752655393404,5.0,165.21,165.16,4.20296626]
[1752655393905,6.0526,165.2,165.16,4.20296626]
[1752655394206,5.0,165.21,165.18,4.20296626]
[1752655395002,5.0,165.21,165.12,4.20296626]
[1752655395203,5.0,165.21,165.17,4.20296626]
[1752655395706,11.0522,165.21,165.18,6.0529]
[1752655396403,6.0525,165.2,165.18,6.0529]
[1752655396604,6.0525,165.2,165.17,4.20296626]
[1752655396901,5.0,165.21,165.17,4.20296626]
[1752655397204,11.0523,165.21,165.18,6.0531]
[1752655397405,28.02606353,165.21,165.17,4.20296626]
[1752655397610,11.0523,165.21,165.17,4.20296626]
[1752655398408,11.0523,165.21,165.18,6.053]
[1752655398709,6.0525,165.2,165.18,6.053]
[1752655399506,11.0522,165.21,165.18,6.053]
[1752655400007,6.0527,165.2,165.17,6.0534]
[1752655400308,6.0527,165.2,165.16,4.20296626]
[1752655401108,6.0527,165.2,165.18,6.053]
[1752655401311,28.02596353,165.21,165.18,6.053]
[1752655401704,21.97376353,165.21,165.16,4.20296626]
[1752655401904,5.0,165.21,165.18,4.20296626]
[1752655402404,5.0,165.21,165.19,6.0528]
[1752655403003,5.0,165.21,165.19,8.73664955]
[1752655403404,11.0522,165.21,165.19,8.73664955]
[1752655403605,11.0522,165.21,165.19,6.0528]
[1752655403802,28.02596353,165.21,165.19,2.68384955]
[1752655404201,28.02596353,165.21,165.19,8.73664955]
[1752655405212,28.02596353,165.21,165.19,6.0528]
[1752655405410,28.02596353,165.21,165.19,2.68384955]
[1752655405613,6.0525,165.2,165.19,2.68384955]
[1752655406307,6.0525,165.2,165.18,8.73704955]
[1752655406813,21.97376353,165.21,165.19,6.0528]
[1752655407115,5.0,165.21,165.19,2.68384955]
[1752655407313,5.0,165.21,165.19,6.0526]
[1752655407507,5.0,165.21,165.19,2.68384955]
[1752655407904,21.97376353,165.21,165.19,2.68384955]
[1752655409114,6.0525,165.2,165.19,2.68384955]
[1752655410014,6.0525,165.2,165.18,6.053]
[1752655410209,28.02606353,165.21,165.19,8.73644955]
[1752655410815,21.97376353,165.21,165.19,8.73644955]
[1752655411015,5.0,165.21,165.19,8.73644955]
[1752655411307,5.0,165.21,165.2,2.68384955]
[1752655412917,5.0,165.21,165.2,8.73634955]
[1752655413313,5.0,165.21,165.2,5.45302826]
[1752655414318,5.0,165.21,165.2,2.68384955]
[1752655417819,11.0521,165.21,165.2,2.68384955]
[1752655418217,5.0,165.21,165.2,2.68384955]
[1752655418626,5.0,165.21,165.19,6.0525]
[1752655418916,5.0,165.21,165.2,2.68384955]
[1752655420121,5.0,165.21,165.19,6.0525]
[1752655420420,11.0521,165.21,165.2,2.68384955]
[1752655421421,11.0521,165.21,165.19,5.53425172]
[1752655423322,11.0521,165.21,165.19,2.85040217]
[1752655423522,11.0521,165.21,165.2,2.68384955]
[1752655424427,28.02586353,165.21,165.2,2.68384955]
[1752655425929,28.02586353,165.21,165.12,12.1105]
[1752655426125,28.02586353,165.21,165.2,2.68384955]
[1752655427227,11.0521,165.21,165.2,2.68384955]
[1752655431431,11.0521,165.21,165.2,2.68365308]
[1752655432032,5.0,165.21,165.2,2.68365308]
[1752655434331,11.0521,165.21,165.12,12.1105]
[1752655434534,11.0521,165.21,165.2,2.68365308]
[1752655434833,11.0521,165.21,165.18,6.0528]
[1752655435034,11.0521,165.21,165.2,2.68365308]
[1752655435234,11.0521,165.21,165.18,6.0528]
[1752655435532,11.0521,165.21,165.2,2.68365308]
[1752655437032,11.0521,165.21,165.2,0.8628736]
[1752655440135,6.0528,165.2,165.17,6.0534]
[1752655440336,6.0528,165.2,165.19,2.68365308]
[1752655441439,5.0,165.21,165.08,535.2934]
[1752655441639,5.0,165.21,165.17,2.68365308]
[1752655441940,5.0,165.21,165.17,2.68453437]
[1752655442136,5.0,165.21,165.18,2.68453437]
[1752655442642,6.0528,165.19,165.18,2.68453437]
[1752655446746,6.0533,165.18,165.16,6.0537]
[1752655446946,6.0533,165.18,165.17,2.68453437]
[1752655452154,6.0533,165.18,165.09,177.64]
[1752655452354,6.0533,165.18,165.17,2.68453437]
[1752655454056,6.0538,165.17,165.09,177.64]
[1752655454255,7.68453437,165.21,165.16,2.68453437]
[1752655454454,5.0,165.21,165.17,2.68453437]
[1752655454650,6.0528,165.19,165.18,2.68453437]
[1752655454952,6.0528,165.19,165.18,0.88781031]
[1752655456257,24.69508757,165.21,165.11,182.76872636]
[1752655456457,7.68453437,165.21,165.17,2.68453437]
[1752655458263,6.0532,165.18,165.17,2.68453437]
[1752655458855,6.0544,165.15,165.11,176.71312636]
[1752655459061,6.0544,165.15,165.14,2.68453437]
[1752655461456,7.68453437,165.21,165.14,2.68453437]
[1752655461653,7.68453437,165.21,165.18,2.68453437]
[1752655461867,6.0528,165.19,165.18,2.68453437]
[1752655462064,7.68453437,165.21,165.17,2.68453437]
[1752655462363,6.0532,165.18,165.17,2.68453437]
[1752655466160,6.0532,165.18,165.17,0.60652778]
[1752655466365,6.0541,165.16,165.13,6.055]
[1752655466664,6.0541,165.16,165.15,2.68453437]
[1752655467066,6.0541,165.16,165.15,2.68459437]
[1752655467565,5.0,165.21,165.15,8.73869437]
[1752655467768,5.0,165.21,165.18,2.68459437]
[1752655467961,5.0,165.21,165.11,176.71312636]
[1752655467962,7.68459437,165.21,165.16,2.68459437]
[1752655468268,2.68459437,165.19,165.11,176.71312636]
[1752655468469,2.68459437,165.19,165.14,2.68459437]
[1752655468665,6.0543,165.15,165.14,2.68459437]
[1752655468866,2.68549976,165.18,165.14,2.68549976]
[1752655469370,6.0543,165.15,165.14,2.68549976]
[1752655471068,6.0546,165.14,165.13,2.68549976]
[1752655471968,2.68549976,165.16,165.11,176.71312636]
[1752655472168,2.68549976,165.16,165.12,2.68549976]
[1752655472368,2.68549976,165.16,165.11,176.71312636]
[1752655472565,2.68549976,165.16,165.12,2.68549976]
[1752655473075,6.055,165.13,165.12,2.68549976]
[1752655476269,128.03616051,165.21,165.12,2.68549976]
[1752655476574,2.68549976,165.19,165.14,2.68549976]
[1752655476873,6.0541,165.16,165.15,2.68549976]
[1752655477374,2.68549976,165.2,165.15,8.73969976]
[1752655477572,130.72166027,165.21,165.16,2.68549976]
[1752655478474,17.0105532,165.17,165.16,2.68549976]
[1752655480874,23.0640532,165.17,165.16,2.68549976]
[1752655482574,17.0105532,165.17,165.16,2.68549976]
[1752655482772,17.0105532,165.18,165.16,8.73939976]
[1752655482976,17.0105532,165.19,165.17,2.68549976]
[1752655483176,23.0633532,165.19,165.18,2.68549976]
[1752655483975,17.0105532,165.19,165.18,2.68549976]
[1752655484176,23.0631532,165.2,165.18,2.68549976]
[1752655484378,6.0526,165.2,165.18,2.68549976]
[1752655485587,6.0528,165.19,165.16,6.0537]
[1752655485779,6.0528,165.19,165.18,2.68549976]
[1752655486382,6.0528,165.19,165.18,0.84489492]
[1752655491987,6.0526,165.2,165.18,0.84489492]
[1752655492189,6.0526,165.2,165.19,2.68549976]
[1752655495791,6.0528,165.19,165.16,6.0537]
[1752655495992,6.0528,165.19,165.18,2.68549976]
[1752655496793,6.0526,165.2,165.18,2.68549976]
[1752655496991,6.0526,165.2,165.19,2.68549976]
[1752655500189,6.0526,165.2,165.16,6.0537]
[1752655500392,6.0526,165.2,165.19,2.68549976]
[1752655503096,11.0522,165.21,165.19,2.68549976]
[1752655503296,11.0522,165.21,165.2,2.68549976]
[1752655505898,5.0,165.21,165.11,176.71312636]
[1752655506098,5.0,165.21,165.19,2.68549976]
[1752655506297,5.0,165.21,165.2,2.68549976]
[1752655507097,11.0521,165.21,165.2,2.68549976]
[1752655508701,11.0521,165.21,165.2,0.63699394]
[1752655509700,6.0527,165.2,165.17,6.0533]
[1752655510001,6.0527,165.2,165.19,2.68549976]
[1752655510198,6.0527,165.2,165.11,176.71312636]
[1752655510401,5.0,165.21,165.18,2.68549976]
[1752655510796,6.0528,165.19,165.18,2.68549976]
[1752655518211,6.0532,165.18,165.15,6.0542]
[1752655518506,6.0532,165.18,165.17,2.68549976]
[1752655518705,23.0637532,165.18,165.17,2.68549976]
[1752655519413,6.0532,165.18,165.16,6.0538]
[1752655519704,23.0637532,165.18,165.17,2.68549976]
[1752655519905,6.0532,165.18,165.17,2.68549976]
[1752655521208,2.68549976,165.2,165.11,176.71312636]
[1752655521408,2.68549976,165.2,165.16,2.68549976]
[1752655521609,2.68549976,165.19,165.15,2.68549976]
[1752655522011,6.0539,165.16,165.15,2.68549976]
[1752655523309,2.68549976,165.18,165.14,2.68549976]
[1752655523513,2.68549976,165.18,165.15,2.68549976]
[1752655523808,2.68549976,165.18,165.11,176.71312636]
[1752655524008,2.68549976,165.18,165.14,2.68549976]
[1752655524208,21.99430222,165.21,165.15,2.68549976]
[1752655524209,2.68549976,165.2,165.15,2.68549976]
[1752655524410,2.68549976,165.2,165.16,2.68549976]
[1752655524713,2.68549976,165.19,165.15,2.68549976]
[1752655525714,2.68549976,165.19,165.12,6.0552]
[1752655525913,2.68549976,165.19,165.15,2.68549976]
[1752655526214,2.68549976,165.17,165.13,2.68549976]
[1752655526915,6.0546,165.14,165.13,2.68549976]
[1752655527213,2.68549976,165.16,165.12,2.68549976]
[1752655528214,6.055,165.13,165.12,2.68549976]
[1752655528417,2.68549976,165.16,165.09,6.0563]
[1752655528615,2.68549976,165.17,165.1,6.0561]
[1752655528810,2.68549976,165.17,165.13,2.68549976]
[1752655529115,5.0,165.21,165.12,2.68549976]
[1752655529116,6.0553,165.13,165.12,2.68549976]
[1752655530209,6.0555,165.12,165.09,6.0563]
[1752655530410,6.0555,165.12,165.11,2.68549976]
[1752655530805,2.68549976,165.13,165.0,523.26]
[1752655531116,12.1058,165.19,165.12,2.68549976]
[1752655531414,6.055,165.13,165.12,2.68549976]
[1752655532614,6.055,165.13,165.09,6.0564]
[1752655532816,6.055,165.13,165.12,2.68549976]
[1752655534014,2.68549976,165.19,165.12,2.68549976]
[1752655534211,5.0,165.21,165.15,2.68549976]
[1752655534212,2.68549976,165.2,165.15,2.68549976]
[1752655534416,6.054,165.16,165.15,2.68549976]
[1752655535316,6.0545,165.15,165.12,6.0551]
[1752655535710,6.0545,165.15,165.14,2.68549976]
[1752655536808,6.054,165.16,165.14,2.68549976]
[1752655537014,6.054,165.16,165.15,2.68549976]
[1752655539815,6.0544,165.15,165.12,6.0551]
[1752655540014,6.0544,165.15,165.14,2.68549976]
[1752655541109,6.0549,165.14,165.09,174.68492083]
[1752655541309,6.0549,165.14,165.13,2.68549976]
[1752655544816,2.68549976,165.15,165.11,2.68549976]
[1752655545914,6.0554,165.12,165.11,2.68549976]
[1752655546412,2.68549976,165.15,165.07,6.057]
[1752655546620,2.68549976,165.15,165.11,2.68549976]
[1752655547115,6.0554,165.12,165.11,2.68549976]
[1752655547618,6.0551,165.13,165.11,2.68549976]
[1752655547918,2.68549976,165.16,165.06,177.3]
[1752655547919,2.68549976,165.16,165.12,2.68549976]
[1752655548218,6.055,165.13,165.12,2.68549976]
[1752655549916,6.0548,165.14,165.12,2.68549976]
[1752655551122,6.055,165.13,165.12,2.68549976]
[1752655551721,6.0548,165.14,165.12,2.68549976]
[1752655553318,2.68549976,165.17,165.06,177.3]
[1752655553622,2.68549976,165.16,165.06,177.3]
[1752655553819,6.055,165.13,165.12,2.68549976]
[1752655555621,6.0554,165.12,165.11,2.68549976]
[1752655556222,2.68549976,165.15,165.06,177.3]